bitfinex/quotes_ETHUSD_20250708
["timestamp","ask_amount","ask_price","bid_price","bid_amount"]
[1751945859896,0.001,2539.1,2539.0,11.88110833]
[1751945861495,0.001,2539.1,2539.0,7.94254985]
[1751945862781,0.001,2539.1,2539.0,11.88110833]
[1751945864794,0.001,2539.1,2539.0,12.43110833]
[1751945864994,0.001,2539.1,2539.0,13.02510833]
[1751945865991,0.001,2539.1,2539.0,1.97545441]
[1751945866194,0.001,2539.1,2539.0,1.18777387]
[1751945866500,0.001,2539.1,2539.0,0.1968]
[1751945868900,0.001,2539.1,2539.0,0.1988]
[1751945870892,0.001,2539.1,2539.0,0.9749]
[1751945871222,0.001,2539.1,2539.0,11.43055392]
[1751945874120,0.001,2539.1,2539.0,12.02455392]
[1751945876808,0.001,2539.1,2539.0,13.62107752]
[1751945883322,0.001,2539.1,2539.0,9.08851904]
[1751945883526,0.001,2539.1,2539.0,0.9749]
[1751945883823,0.001,2539.1,2539.0,0.7928]
[1751945885189,0.001,2539.1,2539.0,0.83218558]
[1751945885624,0.001,2539.1,2539.0,5.32074406]
[1751945887610,0.001,2539.1,2539.0,5.28135848]
[1751945888121,0.001,2539.1,2539.0,3.94102421]
[1751945889112,0.001,2539.1,2539.0,7.87958269]
[1751945911947,0.001,2539.1,2539.0,3.94102421]
[1751945919154,0.001,2539.1,2539.0,13.84667813]
[1751945919333,0.001,2539.1,2539.0,9.31411965]
[1751945919538,0.001,2539.1,2539.0,9.90811965]
[1751945920232,0.001,2539.1,2539.0,0.1988]
[1751945920413,0.001,2539.1,2539.0,0.7928]
[1751945920841,0.001,2539.1,2539.0,0.1988]
[1751945921056,0.001,2539.1,2539.0,0.7928]
[1751945921513,0.001,2539.1,2539.0,0.1988]
[1751945924015,0.001,2539.1,2539.0,0.002]
[1751945924220,0.8036,2539.1,2539.0,0.002]
[1751945942900,0.001,2539.1,2539.0,6.78699544]
[1751945943061,0.001,2539.1,2539.0,6.98379544]
[1751945943755,0.001,2539.1,2539.0,1.0167]
[1751945944382,0.001,2539.1,2539.0,0.1988]
[1751945945487,0.001,2539.1,2539.0,0.9896]
[1751945945688,0.001,2539.1,2539.0,1.02898558]
[1751945945985,0.001,2539.1,2539.0,6.57183721]
[1751945947992,0.001,2539.1,2539.0,6.61122279]
[1751945948990,0.001,2539.1,2539.0,6.57183721]
[1751945949165,0.001,2539.1,2539.0,6.61122279]
[1751945953797,0.001,2539.1,2539.0,6.57183721]
[1751945958401,0.001,2539.1,2539.0,1.84247873]
[1751945958575,0.001,2539.1,2539.0,0.7928]
[1751945964305,0.001,2539.1,2539.0,6.75989544]
[1751945967409,0.001,2539.1,2539.0,7.30989544]
[1751945968914,0.001,2539.1,2539.0,7.34928102]
[1751945969118,0.001,2539.1,2539.0,7.30989544]
[1751945969998,0.001,2539.1,2539.0,9.51584247]
[1751945974303,0.001,2539.1,2539.0,13.45440095]
[1751945975720,0.001,2539.1,2539.0,9.51584247]
[1751945976726,0.001,2539.1,2539.0,13.45440095]
[1751945976922,0.001,2539.1,2539.0,14.26410095]
[1751945977304,0.03969443,2539.3,2539.0,14.26410095]
[1751945977504,0.03969443,2539.3,2539.2,5.96709544]
[1751945977724,0.03969443,2539.3,2539.2,6.75789544]
[1751945982545,0.03969443,2539.3,2539.2,11.2461437]
[1751945982711,0.03969443,2539.3,2539.2,12.0173437]
[1751945984113,0.03969443,2539.3,2539.2,22.0173437]
[1751945984307,0.03969443,2539.3,2539.2,25.01575789]
[1751945984702,0.0429126,2539.8,2539.2,25.01575789]
[1751945984703,0.0429126,2539.8,2539.7,3.93747292]
[1751945984923,0.0429126,2539.8,2539.7,11.08794308]
[1751945985237,0.0429126,2539.8,2539.7,11.24536836]
[1751945995011,0.0429126,2539.8,2539.7,12.00766836]
[1751945995335,0.0429126,2539.8,2539.7,13.60219508]
[1751945996841,0.001,2539.9,2539.8,14.48731789]
[1751945997043,0.001,2539.9,2539.8,15.31301789]
[1751946000266,0.001,2540.2,2540.1,3.93685287]
[1751946000466,0.001,2540.2,2540.1,23.27781683]
[1751946000615,0.001,2540.2,2540.1,23.43524831]
[1751946001426,0.001,2540.2,2540.1,15.43515287]
[1751946001637,0.001,2540.2,2540.1,23.43524831]
[1751946001855,0.001,2540.2,2540.1,26.44850306]
[1751946013332,0.001,2540.2,2540.1,19.72715019]
[1751946013543,0.001,2540.2,2540.1,12.2298]
[1751946014234,0.001,2540.2,2540.1,10.7468]
[1751946014435,0.001,2540.2,2540.1,10.7908]
[1751946015166,0.001,2540.2,2540.1,11.3408]
[1751946017546,0.001,2540.2,2540.1,21.24474831]
[1751946017744,0.001,2540.2,2540.1,24.69153775]
[1751946021682,0.001,2540.2,2540.1,17.93974231]
[1751946022773,0.001,2540.2,2540.1,13.40888944]
[1751946022983,0.001,2540.2,2540.1,0.1968]
[1751946023354,0.001,2540.2,2540.1,0.7918]
[1751946023879,0.7723,2540.2,2540.1,0.595]
[1751946024077,0.7723,2540.2,2539.9,0.002]
[1751946024078,0.7723,2540.2,2540.0,0.7918]
[1751946024368,1.4495308,2540.1,2540.0,0.7918]
[1751946024784,0.7713,2540.1,2540.0,0.1968]
[1751946027479,0.001,2540.2,2540.0,0.1968]
[1751946027948,0.001,2540.2,2540.1,0.1968]
[1751946034190,0.001,2540.2,2540.1,4.68365287]
[1751946034769,0.001,2540.2,2540.1,4.72302139]
[1751946035357,0.001,2540.2,2540.1,5.64873449]
[1751946038385,0.001,2540.2,2540.1,5.60936597]
[1751946039390,0.001,2540.2,2540.1,6.20536597]
[1751946040187,0.001,2540.2,2540.1,12.21182993]
[1751946040388,0.001,2540.2,2540.1,12.17246141]
[1751946040689,0.001,2540.2,2540.1,6.20536597]
[1751946054903,0.001,2540.2,2540.1,16.20536597]
[1751946062802,0.001,2540.2,2540.1,17.02106597]
[1751946063708,0.001,2540.2,2540.1,28.44226141]
[1751946076232,0.001,2540.2,2540.1,22.98816141]
[1751946076938,0.001,2540.2,2540.1,16.42506597]
[1751946077134,0.001,2540.2,2540.1,15.65436597]
[1751946077642,0.001,2540.2,2540.1,16.20436597]
[1751946078244,0.001,2540.2,2540.1,12.2675131]
[1751946078545,0.001,2540.2,2540.1,16.20436597]
[1751946078944,0.0419126,2540.3,2540.2,0.55]
[1751946079142,0.0419126,2540.3,2540.2,2.6191327]
[1751946079352,0.0419126,2540.3,2540.2,0.55]
[1751946079517,0.0419126,2540.3,2540.2,4.48669789]
[1751946088853,0.0429126,2540.3,2540.2,4.48669789]
[1751946089259,0.0429126,2540.3,2540.2,10.4931603]
[1751946089591,0.0429126,2540.3,2540.2,10.45379333]
[1751946089789,0.0429126,2540.3,2540.2,23.14037844]
[1751946090458,0.0429126,2540.3,2540.2,24.58437844]
[1751946092384,0.0429126,2540.3,2540.2,25.40307844]
[1751946096300,0.0429126,2540.3,2540.2,52.92733544]
[1751946096798,0.0429126,2540.3,2540.2,51.35055644]
[1751946096966,0.0429126,2540.3,2540.2,49.26783144]
[1751946097692,0.0429126,2540.3,2540.2,46.04738144]
[1751946098096,0.0429126,2540.3,2540.2,43.42841344]
[1751946098503,0.0429126,2540.3,2540.2,30.09231644]
[1751946099587,0.0429126,2540.3,2540.2,17.991983]
[1751946099770,0.0429126,2540.3,2540.2,17.768283]
[1751946100570,0.0429126,2540.3,2540.2,17.218283]
[1751946100806,0.0429126,2540.3,2540.2,15.08169789]
[1751946101012,0.0429126,2540.3,2540.2,14.53169789]
[1751946101369,0.0429126,2540.3,2540.2,15.08169789]
[1751946104594,0.7932,2540.2,2540.1,0.1968]
[1751946104784,0.7932,2540.2,2539.9,0.002]
[1751946104785,0.7932,2540.1,2539.9,0.002]
[1751946104980,0.7932,2540.1,2540.0,1.217]
[1751946105812,0.7932,2540.1,2540.0,1.80637007]
[1751946108001,0.8098126,2540.3,2540.1,0.55]
[1751946108205,0.8098126,2540.3,2540.2,2.725]
[1751946108904,0.8098126,2540.3,2540.2,3.275]
[1751946111483,0.8098126,2540.3,2540.2,2.725]
[1751946111718,6.01000804,2540.3,2540.2,1.218]
[1751946111894,7.40280884,2540.3,2540.2,1.218]
[1751946112309,11.33935176,2540.3,2540.2,1.218]
[1751946112683,7.77116244,2540.3,2540.2,1.218]
[1751946113215,7.40280884,2540.3,2540.2,1.218]
[1751946113793,1.4357134,2540.3,2540.2,1.218]
[1751946113999,0.8346126,2540.3,2540.2,1.218]
[1751946119430,0.8346126,2540.3,2540.2,1.216]
[1751946134848,0.0429126,2540.3,2540.2,1.216]
[1751946149766,0.0429126,2540.3,2540.2,2.709]
[1751946150456,0.41220808,2540.3,2540.2,1.216]
[1751946150658,0.41220808,2540.3,2540.2,2.709]
[1751946153256,0.41220808,2540.3,2540.2,1.216]
[1751946153445,1.20110808,2540.3,2540.2,1.216]
[1751946153761,1.20110808,2540.3,2540.2,2.709]
[1751946154337,1.20118348,2540.3,2540.2,2.709]
[1751946154954,1.57055474,2540.3,2540.2,1.216]
[1751946155155,1.20118348,2540.3,2540.2,1.216]
[1751946155473,1.57055751,2540.3,2540.2,1.216]
[1751946156046,1.20118348,2540.3,2540.2,1.216]
[1751946156289,1.57054401,2540.3,2540.2,1.216]
[1751946156584,1.20118348,2540.3,2540.2,1.216]
[1751946156784,1.57053773,2540.3,2540.2,1.216]
[1751946157374,1.20118348,2540.3,2540.2,1.216]
[1751946159145,1.57052731,2540.3,2540.2,1.216]
[1751946159348,1.89376944,2540.3,2540.2,1.216]
[1751946161045,1.20118348,2540.3,2540.2,1.216]
[1751946164393,0.41228348,2540.3,2540.2,1.216]
[1751946164892,0.0429126,2540.3,2540.2,1.216]
[1751946180885,0.41226874,2540.3,2540.2,1.216]
[1751946181080,1.20236874,2540.3,2540.2,1.216]
[1751946182113,1.85817092,2540.3,2540.2,1.216]
[1751946182496,1.19695596,2540.3,2540.2,1.216]
[1751946182696,0.40685596,2540.3,2540.2,1.216]
[1751946183614,0.0429126,2540.3,2540.2,1.216]
[1751946188815,0.0429126,2540.3,2540.2,1.4128]
[1751946192428,0.0429126,2540.3,2540.2,2.8908]
[1751946193030,0.0429126,2540.3,2540.2,3.29678697]
[1751946193187,0.0429126,2540.3,2540.2,9.26388241]
[1751946193396,0.0429126,2540.3,2540.2,9.22451544]
[1751946193697,0.0429126,2540.3,2540.2,3.25742]
[1751946193893,0.0429126,2540.3,2540.2,7.23348486]
[1751946194196,0.0429126,2540.3,2540.2,3.29678697]
[1751946194714,0.0429126,2540.3,2540.2,1.81878697]
[1751946194915,0.0429126,2540.3,2540.2,2.8908]
[1751946195113,0.0429126,2540.3,2540.2,1.4128]
[1751946195313,0.0429126,2540.3,2540.2,2.8908]
[1751946195923,0.0429126,2540.3,2540.2,1.4128]
[1751946196092,0.0429126,2540.3,2540.2,2.8908]
[1751946197406,0.0429126,2540.3,2540.2,2.8798]
[1751946206131,0.7955126,2540.3,2540.2,1.216]
[1751946206334,1.26879599,2540.3,2540.2,1.216]
[1751946206832,1.62626107,2540.3,2540.2,1.216]
[1751946207066,1.26879599,2540.3,2540.1,0.002]
[1751946207331,0.1968,2540.2,2540.1,0.601]
[1751946207936,0.1968,2540.2,2540.1,0.002]
[1751946208135,1.23636727,2540.2,2540.1,0.601]
[1751946208335,0.5542667,2540.2,2540.1,0.601]
[1751946208541,0.1968,2540.2,2540.1,0.601]
[1751946212941,0.1968,2540.2,2540.1,0.002]
[1751946234037,0.0429126,2540.3,2540.2,0.8265]
[1751946234237,0.0429126,2540.3,2540.2,5.59425216]
[1751946234639,0.0429126,2540.3,2540.2,0.8265]
[1751946234965,0.0429126,2540.3,2540.2,0.597]
[1751946236168,0.0429126,2540.3,2540.1,0.1988]
[1751946236356,0.0429126,2540.3,2540.2,0.597]
[1751946236666,0.2672874,2540.3,2540.2,0.597]
[1751946237164,0.2672874,2540.3,2540.1,0.599]
[1751946237165,0.99303642,2540.3,2540.1,0.599]
[1751946237334,0.2672874,2540.3,2540.1,0.599]
[1751946237966,1.68382277,2540.3,2540.1,0.599]
[1751946238166,0.2672874,2540.3,2540.1,0.599]
[1751946238642,1.45944797,2540.3,2540.1,0.599]
[1751946238842,0.0429126,2540.3,2540.1,0.599]
[1751946239253,1.45944797,2540.3,2540.1,0.599]
[1751946239453,0.0429126,2540.3,2540.1,0.599]
[1751946239867,1.45944797,2540.3,2540.1,0.599]
[1751946240072,0.2869674,2540.3,2540.1,0.599]
[1751946240252,0.72576168,2540.2,2540.1,0.002]
[1751946240453,2.14405479,2540.2,2540.1,0.002]
[1751946241075,0.72576168,2540.2,2540.1,0.002]
[1751946242774,2.14405479,2540.2,2540.1,0.002]
[1751946243649,0.72573795,2540.2,2540.1,0.002]
[1751946249647,0.72528243,2540.2,2540.1,0.002]
[1751946250463,0.0429126,2540.3,2540.1,0.002]
[1751946253191,0.0429126,2540.3,2540.1,0.1988]
[1751946278979,0.0429126,2540.3,2540.2,0.597]
[1751946284076,0.0429126,2540.3,2540.2,0.22518]
[1751946284281,0.0429126,2540.3,2540.2,5.51107789]
[1751946284681,0.0429126,2540.3,2540.2,5.55044486]
[1751946286911,0.0429126,2540.3,2540.2,11.50717023]
[1751946287083,0.0429126,2540.3,2540.2,11.46780326]
[1751946290715,0.0429126,2540.3,2540.2,12.06480326]
[1751946294519,0.0429126,2540.3,2540.2,4.75887789]
[1751946298294,0.0429126,2540.3,2540.2,4.79824486]
[1751946298511,0.0429126,2540.3,2540.2,4.75887789]
[1751946303110,0.0429126,2540.3,2540.2,0.82218]
[1751946303294,0.0429126,2540.3,2540.2,4.75887789]
[1751946303995,0.0429126,2540.3,2540.1,0.1988]
[1751946304302,0.8345126,2540.3,2540.1,0.1988]
[1751946305603,0.8345126,2540.3,2540.1,0.002]
[1751946321074,0.0429126,2540.3,2540.1,0.002]
[1751946326010,0.7916,2540.2,2540.1,0.002]
[1751946334303,1.14483198,2540.2,2540.1,0.002]
[1751946342810,1.14444392,2540.2,2540.1,0.002]
[1751946346222,1.14445327,2540.2,2540.1,0.002]
[1751946346556,1.42466283,2540.2,2540.1,0.002]
[1751946346819,24.86130967,2540.2,2540.1,0.002]
[1751946346981,23.09013183,2540.2,2540.1,0.002]
[1751946347805,19.15343394,2540.2,2540.1,0.002]
[1751946348123,20.60543394,2540.2,2540.1,0.002]
[1751946348486,22.37671965,2540.2,2540.1,0.002]
[1751946348783,21.54473925,2540.2,2540.1,0.002]
[1751946350020,17.60804136,2540.2,2540.1,0.002]
[1751946350517,16.15704136,2540.2,2540.1,0.002]
[1751946350727,17.60904136,2540.2,2540.1,0.002]
[1751946353006,15.83775565,2540.2,2540.1,0.002]
[1751946353245,21.54573925,2540.2,2540.1,0.002]
[1751946354249,17.60904136,2540.2,2540.1,0.002]
[1751946354412,21.54573925,2540.2,2540.1,0.002]
[1751946355833,21.17637616,2540.2,2540.1,0.002]
[1751946358433,19.95509045,2540.2,2540.1,0.002]
[1751946361207,19.95509045,2540.2,2540.0,0.002]
[1751946361432,24.15949977,2540.1,2540.0,0.002]
[1751946362245,27.69441732,2540.1,2540.0,0.002]
[1751946363450,27.69441732,2540.1,2540.0,1e-08]
[1751946364156,13.93700787,2540.0,2539.9,0.002]
[1751946364452,21.19445599,2540.0,2539.9,0.002]
[1751946364747,17.66179087,2540.0,2539.9,0.002]
[1751946364919,18.21179087,2540.0,2539.1,0.002]
[1751946365115,14.73194826,2539.2,2539.1,0.002]
[1751946365316,19.59680124,2539.2,2539.1,0.002]
[1751946365755,21.00945775,2539.2,2539.1,0.002]
[1751946366846,3.93912818,2538.7,2537.9,0.002]
[1751946367052,1.193,2538.6,2538.0,0.8316]
[1751946367254,11.452,2538.5,2538.0,0.8316]
[1751946367547,1.63459092,2538.6,2538.3,0.8316]
[1751946367548,1.193,2538.4,2538.3,0.8316]
[1751946379535,1.193,2538.4,2538.3,0.8336]
[1751946379930,1.194,2538.4,2538.3,0.8336]
[1751946380657,0.001,2538.4,2538.3,4.77324464]
[1751946380957,0.001,2538.4,2538.3,6.46137388]
[1751946382558,0.001,2538.4,2538.3,5.62977388]
[1751946382851,0.001,2538.4,2538.3,7.04017032]
[1751946385263,0.001,2538.4,2538.3,7.00077388]
[1751946389864,0.001,2538.4,2538.3,7.80077388]
[1751946400590,0.001,2538.4,2538.3,6.90544464]
[1751946400995,0.001,2538.4,2538.3,4.93844464]
[1751946401295,0.001,2538.4,2538.3,6.08444464]
[1751946402779,0.001,2538.4,2538.3,6.94444108]
[1751946408202,0.001,2538.4,2538.3,6.90504464]
[1751946410310,0.001,2538.4,2538.3,8.58593231]
[1751946421523,0.001,2538.4,2538.3,7.98993231]
[1751946421725,0.001,2538.4,2538.3,8.58593231]
[1751946423696,0.001,2538.4,2538.3,6.90504464]
[1751946427614,0.001,2538.4,2538.3,6.94444108]
[1751946429514,0.001,2538.4,2538.3,6.90504464]
[1751946429952,0.001,2538.4,2538.3,12.86710854]
[1751946441734,0.001,2538.4,2538.3,22.86710854]
[1751946441937,0.001,2538.4,2538.3,25.54799621]
[1751946446058,0.001,2538.4,2538.3,30.21261621]
[1751946450459,0.001,2538.4,2538.3,31.66261621]
[1751946451034,1.3908,2539.5,2539.2,3.93814301]
[1751946451231,0.7509,2539.4,2539.3,6.55144483]
[1751946451436,0.7509,2539.4,2539.3,6.7088639]
[1751946452334,0.7509,2539.4,2539.3,10.64695707]
[1751946453474,0.7509,2539.4,2539.3,4.68489317]
[1751946455072,0.001,2539.5,2539.4,4.48793809]
[1751946455279,0.001,2539.5,2539.4,11.08538137]
[1751946455453,0.001,2539.5,2539.4,11.04600199]
[1751946456864,0.001,2539.5,2539.4,11.84600199]
[1751946458480,0.001,2539.5,2539.4,1.946]
[1751946458642,0.001,2539.5,2539.4,1.146]
[1751946459041,0.001,2539.5,2539.4,5.08393809]
[1751946459275,0.001,2539.5,2539.4,2.81591537]
[1751946463341,0.001,2539.5,2539.4,1.146]
[1751946463541,0.001,2539.5,2539.4,1.946]
[1751946464614,0.001,2539.5,2539.4,1.146]
[1751946472899,0.001,2539.5,2539.4,1.946]
[1751946473199,0.001,2539.5,2539.3,0.7928]
[1751946473498,0.7759,2539.4,2539.3,0.7928]
[1751946473870,0.7759,2539.4,2539.3,0.1968]
[1751946474491,0.7759,2539.4,2538.8,11.448]
[1751946474692,0.7759,2539.4,2539.1,0.1968]
[1751946481811,0.7759,2539.4,2539.2,5.9620639]
[1751946482116,0.001,2539.5,2539.3,0.9968]
[1751946483113,0.001,2539.5,2539.3,0.1968]
[1751946484182,0.001,2539.5,2539.3,4.13488323]
[1751946485083,0.001,2539.5,2539.3,5.53841438]
[1751946486084,0.001,2539.5,2539.3,1.60033115]
[1751946486311,0.001,2539.5,2539.3,0.1968]
[1751946486513,0.7926,2539.5,2539.3,0.1968]
[1751946501344,0.001,2539.5,2539.3,0.1968]
[1751946505729,0.7692,2539.4,2539.3,0.1968]
[1751946506828,0.001,2539.5,2539.3,0.1968]
[1751946509047,0.001,2539.5,2539.3,4.13484168]
[1751946509231,0.001,2539.5,2539.3,0.69587257]
[1751946510149,0.001,2539.5,2539.3,0.1968]
[1751946510355,0.772,2539.5,2539.3,0.1968]
[1751946511846,0.772,2539.5,2539.1,0.1968]
[1751946520461,0.772,2539.5,2539.3,0.8]
[1751946520635,0.001,2539.5,2539.3,0.9968]
[1751946520834,0.001,2539.5,2539.3,2.09045277]
[1751946521150,0.001,2539.5,2539.4,0.1968]
[1751946548589,0.7676,2539.5,2539.4,0.1968]
[1751946552457,0.001,2539.5,2539.4,0.1968]
[1751946565199,0.001,2539.5,2539.4,4.96651454]
[1751946565382,0.001,2539.5,2539.4,5.93269543]
[1751946567304,0.001,2539.5,2539.4,4.96651454]
[1751946570790,0.001,2539.5,2539.4,0.1968]
[1751946581591,0.001,2539.5,2539.4,5.54081747]
[1751946582832,0.001,2539.5,2539.4,21.4990412]
[1751946583131,0.001,2539.5,2539.4,21.45966182]
[1751946583328,0.001,2539.5,2539.4,24.85893199]
[1751946584296,0.001,2539.5,2539.4,26.30493199]
[1751946596842,0.001,2539.5,2539.4,24.04223199]
[1751946597149,0.001,2539.5,2539.4,15.52973809]
[1751946597446,0.001,2539.5,2539.4,16.07973809]
[1751946597748,0.001,2539.5,2539.4,22.03796182]
[1751946597906,0.001,2539.5,2539.4,22.84436182]
[1751946599943,0.001,2539.5,2539.4,22.24936182]
[1751946600139,0.001,2539.5,2539.4,25.46310651]
[1751946600340,0.001,2539.5,2539.4,10.71876842]
[1751946600645,0.001,2539.5,2539.4,1.5468]
[1751946600812,0.7823,2539.5,2539.4,1.5918]
[1751946601524,0.7823,2539.5,2539.4,0.7918]
[1751946602548,0.7823,2539.5,2539.4,0.1968]
[1751946602726,0.001,2539.5,2539.4,6.15502373]
[1751946602907,0.001,2539.5,2539.4,6.70502373]
[1751946603114,0.001,2539.5,2539.4,21.80614583]
[1751946603326,0.001,2539.5,2539.4,22.58476645]
[1751946606918,0.001,2539.5,2539.4,23.38476645]
[1751946613929,0.001,2539.5,2539.4,22.56676645]
[1751946622357,0.001,2539.5,2539.4,23.39686645]
[1751946632873,0.001,2539.5,2539.4,23.99186645]
[1751946634070,0.001,2539.5,2539.4,23.16176645]
[1751946637367,0.001,2539.5,2539.4,23.93616645]
[1751946647054,0.001,2539.5,2539.4,23.16176645]
[1751946649402,0.001,2539.5,2539.4,18.62882836]
[1751946649685,0.8021,2539.5,2539.4,0.9968]
[1751946649983,0.8021,2539.5,2539.4,1.5918]
[1751946650352,0.8021,2539.5,2539.4,0.9968]
[1751946650552,0.8021,2539.5,2539.4,1.5918]
[1751946651511,0.8021,2539.5,2539.4,2.1418]
[1751946651675,0.001,2539.5,2539.4,12.03796182]
[1751946655002,0.001,2539.5,2539.4,8.10002373]
[1751946656202,0.001,2539.5,2539.4,2.1418]
[1751946656900,0.8199,2539.5,2539.4,2.1418]
[1751946659402,0.8199,2539.5,2539.4,6.07973809]
[1751946659590,0.001,2539.5,2539.4,6.07973809]
[1751946659796,0.001,2539.5,2539.4,13.8233847]
[1751946660103,0.001,2539.5,2539.4,13.78400532]
[1751946660303,0.001,2539.5,2539.4,12.03796182]
[1751946661904,0.001,2539.5,2539.4,22.03796182]
[1751946675331,0.001,2539.5,2539.4,16.07973809]
[1751946682026,0.001,2539.5,2539.4,12.1418]
[1751946682595,0.001,2539.5,2539.4,16.07973809]
[1751946683001,0.001,2539.5,2539.4,2.1418]
[1751946686129,0.001,2539.5,2539.4,6.11911747]
[1751946686429,0.001,2539.5,2539.4,12.0773412]
[1751946686628,0.001,2539.5,2539.4,13.14524189]
[1751946688334,0.001,2539.5,2539.4,12.03796182]
[1751946690740,0.001,2539.5,2539.4,22.03796182]
[1751946703455,0.001,2539.5,2539.4,2.1418]
[1751946708175,0.001,2539.5,2539.4,1.5468]
[1751946708468,0.8047,2539.5,2539.4,1.5918]
[1751946708626,0.001,2539.5,2539.4,2.1418]
[1751946708827,0.001,2539.5,2539.4,7.36909058]
[1751946709232,0.001,2539.5,2539.4,3.43115249]
[1751946709735,0.001,2539.5,2539.4,7.36909058]
[1751946709934,0.001,2539.5,2539.4,17.40846996]
[1751946710266,0.001,2539.5,2539.4,18.18519058]
[1751946718145,0.001,2539.5,2539.4,24.14341431]
[1751946719973,0.0439126,2540.3,2539.4,19.38937622]
[1751946720150,0.0439126,2540.3,2540.2,26.77594189]
[1751946720465,0.0439126,2540.3,2540.2,28.81594189]
[1751946720683,0.001,2540.6,2540.5,0.55]
[1751946720835,0.001,2540.6,2540.5,21.07981908]
[1751946721034,0.001,2540.6,2540.5,24.01325911]
[1751946722570,0.0439126,2541.3,2540.5,24.01325911]
[1751946722571,1e-08,2541.3,2540.9,0.55]
[1751946722797,0.0429126,2541.9,2541.8,3.93421984]
[1751946722970,0.0429126,2541.9,2541.8,11.86564372]
[1751946723142,0.0429126,2541.9,2541.8,11.82630153]
[1751946723464,0.0429126,2541.9,2541.8,21.82630153]
[1751946724468,0.25,2542.1,2542.0,4.4839103]
[1751946724658,0.265235,2542.1,2542.0,12.61513825]
[1751946725458,0.25,2542.1,2542.0,12.61513825]
[1751946727085,0.25,2542.1,2542.0,12.90655043]
[1751946730159,0.25,2542.1,2542.0,13.10255043]
[1751946733293,0.25,2542.1,2542.0,13.90255043]
[1751946734792,0.25,2542.1,2542.0,3.16900422]
[1751946735094,0.25,2542.1,2542.0,6.0769103]
[1751946735462,0.25,2542.1,2542.0,12.03513403]
[1751946738386,0.25,2542.1,2542.0,6.0769103]
[1751946745874,0.25,2542.1,2542.0,12.03513403]
[1751946753503,0.251,2542.1,2542.0,12.03513403]
[1751946753703,0.251,2542.1,2542.0,13.81640491]
[1751946756289,0.251,2542.1,2542.0,7.85818118]
[1751946759102,0.251,2542.1,2542.0,17.85818118]
[1751946780319,0.251,2542.1,2542.0,17.26118118]
[1751946780639,0.251,2542.1,2542.0,17.85618118]
[1751946785039,0.3057554,2542.1,2542.0,17.85618118]
[1751946788950,0.0557554,2542.1,2542.0,22.61443193]
[1751946790420,0.0557554,2542.1,2542.0,12.61443193]
[1751946805582,0.0557554,2542.1,2542.0,7.85518118]
[1751946805782,0.0557554,2542.1,2542.0,5.5239103]
[1751946806176,0.0557554,2542.1,2542.0,1.59]
[1751946806558,0.0557554,2542.1,2542.0,2.14]
[1751946809263,0.0557554,2542.1,2542.0,1.59]
[1751946811394,0.0557554,2542.1,2542.0,0.996]
[1751946811692,0.0557554,2542.1,2542.0,1.59]
[1751946815703,0.0557554,2542.1,2542.0,0.996]
[1751946815903,0.8604554,2542.1,2542.0,0.996]
[1751946817326,0.8604554,2542.1,2542.0,0.8]
[1751946817482,0.8604554,2542.1,2541.8,0.196]
[1751946825033,0.8604554,2542.1,2541.5,1.144]
[1751946825200,0.8604554,2542.1,2541.7,0.196]
[1751946828201,0.8604554,2542.1,2541.4,2.04]
[1751946828401,0.8023,2542.0,2541.6,0.196]
[1751946829413,0.8570554,2542.0,2541.6,0.196]
[1751946830901,0.8570554,2542.0,2541.6,4.95661183]
[1751946832905,0.8570554,2542.0,2541.6,0.196]
[1751946841537,0.8570554,2542.0,2541.6,4.13051268]
[1751946843240,0.8570554,2542.0,2541.6,0.196]
[1751946843540,0.8570554,2542.0,2541.6,4.13051018]
[1751946845542,0.8570554,2542.0,2541.6,0.196]
[1751946847335,0.8570554,2542.0,2541.6,4.13050919]
[1751946849841,0.8570554,2542.0,2541.6,0.196]
[1751946850348,0.8570554,2542.0,2541.6,4.13046303]
[1751946850949,0.8570554,2542.0,2541.6,0.196]
[1751946851349,0.8570554,2542.0,2541.6,4.13052146]
[1751946851548,0.8570554,2542.0,2541.6,0.196]
[1751946851757,0.8570554,2542.0,2541.6,4.13052188]
[1751946854853,0.8570554,2542.0,2541.6,8.89101398]
[1751946857263,0.8570554,2542.0,2541.6,4.9564921]
[1751946857552,0.8570554,2542.0,2541.6,5.5504921]
[1751946866171,0.8570554,2542.0,2541.6,9.48501934]
[1751946867147,0.8570554,2542.0,2541.7,3.93426587]
[1751946867348,0.8570554,2542.0,2541.7,0.196]
[1751946884007,0.8580554,2542.0,2541.7,0.196]
[1751946884814,0.0557554,2542.0,2541.9,10.03505716]
[1751946885113,0.0557554,2542.0,2541.9,20.62905716]
[1751946885312,0.0557554,2542.0,2541.9,21.42905716]
[1751946888127,0.0557554,2542.0,2541.9,22.87205716]
[1751946890715,0.0557554,2542.0,2541.9,12.87205716]
[1751946890917,0.0557554,2542.0,2541.9,14.65539245]
[1751946894825,0.0557554,2542.0,2541.9,14.85139245]
[1751946903944,0.0557554,2542.0,2541.9,14.84822755]
[1751946904253,0.0423323,2542.5,2542.4,4.48329137]
[1751946904528,0.0423323,2542.5,2542.4,16.44396479]
[1751946907211,0.0423323,2542.5,2542.4,11.68347269]
[1751946907534,0.0423323,2542.5,2542.4,9.43978347]
[1751946907724,0.0423323,2542.5,2542.4,10.03378347]
[1751946910826,0.0423323,2542.5,2542.4,5.27329137]
[1751946923340,0.0423323,2542.5,2542.4,0.746]
[1751946923514,0.0423323,2542.5,2542.4,1.34]
[1751946924413,0.0423323,2542.5,2542.4,0.746]
[1751946924611,0.0423323,2542.5,2542.4,1.34]